bitfinex/quotes_SOLUSD_20250306
["timestamp","ask_amount","ask_price","bid_price","bid_amount"]
[1741250685185,94.4187,151.09,151.05,0.033]
[1741250685807,87.8,151.08,151.05,0.033]
[1741250686007,87.8,151.07,151.05,0.033]
[1741250686186,87.8,151.06,151.05,0.033]
[1741250686508,23.1638,151.1,151.05,0.033]
[1741250686812,87.8,151.09,151.06,312.0]
[1741250687690,6.619,151.08,151.06,312.0]
[1741250688002,87.8,151.09,151.06,312.0]
[1741250688209,87.8,151.09,151.05,0.033]
[1741250688210,87.8,151.09,151.05,0.17516157]
[1741250688385,94.4186,151.09,151.05,0.17516157]
[1741250688887,94.4186,151.09,151.05,0.033]
[1741250690112,110.965,151.09,151.05,0.033]
[1741250690299,87.8,151.08,151.05,0.033]
[1741250690491,18.64964886,151.07,151.05,0.033]
[1741250691209,87.8,151.06,151.05,312.033]
[1741250691391,23.165,151.09,151.05,312.033]
[1741250691707,16.5464,151.09,151.05,312.033]
[1741250691890,35.19604886,151.09,151.05,312.033]
[1741250693808,41.81454886,151.09,151.05,312.033]
[1741250694113,41.84454886,151.09,151.05,0.033]
[1741250695400,7.0,151.08,151.05,0.033]
[1741250695807,6.6194,151.07,151.05,0.033]
[1741250697017,6.6194,151.07,151.05,312.033]
[1741250697513,6.6194,151.07,151.05,0.033]
[1741250700607,6.6194,151.07,151.06,312.0]
[1741250700794,87.8,151.06,151.05,0.033]
[1741250700995,18.64964886,151.06,151.0,0.033]
[1741250701322,87.8,151.05,151.0,0.033]
[1741250701813,87.8,151.05,151.04,312.0]
[1741250702020,7.0,151.06,151.04,312.0]
[1741250702195,7.0,151.06,151.0,6.6552]
[1741250702196,13.6199,151.06,151.0,6.6552]
[1741250702396,80.8,151.04,151.0,0.033]
[1741250704102,80.8,151.04,151.0,0.17516157]
[1741250704298,87.4208,151.04,151.0,0.17516157]
[1741250704807,87.4208,151.04,151.0,0.033]
[1741250705221,87.4208,151.04,151.02,312.0]
[1741250705523,87.4209,151.04,151.02,312.0]
[1741250705903,87.4209,151.04,151.03,0.033]
[1741250706105,80.8,151.04,151.03,0.033]
[1741250706310,13.6204,151.05,151.03,0.033]
[1741250706821,7.0,151.05,151.03,0.033]
[1741250708117,0.03,151.06,151.04,26.385498]
[1741250708322,0.03,151.06,151.05,0.14216157]
[1741250708518,0.03,151.06,151.03,0.033]
[1741250708719,6.6499,151.06,151.03,0.033]
[1741250709018,7.0,151.05,151.03,0.033]
[1741250710800,0.03,151.06,151.03,26.418498]
[1741250711116,0.03,151.06,151.05,26.52765957]
[1741250711298,0.03,151.06,151.05,32.97425957]
[1741250711899,0.03,151.09,151.05,32.97425957]
[1741250712093,0.03,151.09,151.08,347.06945957]
[1741250713409,0.01484488,151.17,151.09,0.56864628]
[1741250713608,0.01484488,151.17,151.15,26.385498]
[1741250713931,0.01484488,151.17,151.15,0.14216157]
[1741250714298,0.01484488,151.17,151.15,33.14335957]
[1741250714644,0.01484488,151.17,151.16,26.52765957]
[1741250716334,0.01484488,151.17,151.16,33.56964428]
[1741250716636,0.03,151.21,151.17,0.14216157]
[1741250716926,0.03,151.21,151.2,26.52765957]
[1741250718105,87.8,151.29,151.23,0.14216157]
[1741250718302,87.4099,151.29,151.24,0.14216157]
[1741250718801,87.4099,151.29,151.2,26.52765957]
[1741250719226,103.9344,151.29,151.2,26.52765957]
[1741250719401,103.9344,151.29,151.2,0.14216157]
[1741250719602,87.8,151.28,151.15,1.8806]
[1741250719804,87.8,151.28,151.16,26.385498]
[1741250720045,87.8,151.28,151.26,0.14216157]
[1741250720534,94.4103,151.28,151.26,0.14216157]
[1741250720740,94.4103,151.28,151.22,0.14216157]
[1741250721954,94.4103,151.28,151.21,0.14216157]
[1741250722326,80.8,151.29,151.25,0.14216157]
[1741250722521,80.8,151.29,151.25,26.52765957]
[1741250723130,87.4099,151.29,151.24,26.52765957]
[1741250723456,80.8,151.29,151.26,0.14216157]
[1741250723754,6.6094,151.3,151.28,312.0]
[1741250723956,6.6094,151.3,151.29,0.14216157]
[1741250724127,6.6094,151.3,151.21,26.385498]
[1741250724128,23.1328,151.3,151.21,26.385498]
[1741250724442,16.5234,151.3,151.19,0.033]
[1741250724825,18.64964886,151.28,151.19,0.033]
[1741250725026,18.933972,151.26,151.19,0.033]
[1741250725241,18.933972,151.26,151.19,0.0001]
[1741250725546,25.465972,151.24,151.07,26.385498]
[1741250725735,18.933972,151.2,151.05,32.877798]
[1741250725938,18.64964886,151.2,151.07,26.385498]
[1741250726340,23.1495,151.19,151.06,26.385498]
[1741250726639,23.1495,151.19,151.07,0.14216157]
[1741250726843,23.1495,151.19,151.07,26.385498]
[1741250727046,18.64964886,151.18,151.15,312.0]
[1741250727242,18.64964886,151.16,151.04,0.033]
[1741250727624,1.9642,151.17,151.06,26.385498]
[1741250727826,1.9642,151.17,151.09,0.14216157]
[1741250728237,1.9642,151.17,151.14,0.14216157]
[1741250728442,8.5796,151.17,151.14,0.14216157]
[1741250728851,8.5796,151.17,151.09,0.14216157]
[1741250729255,8.5796,151.17,151.08,0.14216157]
[1741250729436,8.5796,151.17,151.08,26.52765957]
[1741250729638,6.6124,151.23,151.14,26.52765957]
[1741250729960,13.144,151.24,151.16,0.14216157]
[1741250730360,13.144,151.24,151.15,0.14216157]
[1741250730741,18.79181043,151.23,151.12,0.14216157]
[1741250731640,18.79181043,151.23,151.21,312.0]
[1741250731857,87.8,151.22,151.21,312.0]
[1741250732282,87.8,151.22,151.1,26.385498]
[1741250732283,87.94216157,151.21,151.1,26.385498]
[1741250732466,87.8,151.2,151.08,26.385498]
[1741250732775,18.64964886,151.18,151.07,6.4]
[1741250732943,20.63664886,151.18,151.05,32.765498]
[1741250733143,87.8,151.17,151.06,0.14216157]
[1741250734256,6.3377,151.15,151.05,6.38]
[1741250734705,87.8,151.14,151.04,0.033]
[1741250734859,87.8,151.13,151.04,0.17516157]
[1741250735245,87.8,151.13,151.1,312.0]
[1741250735561,87.8,151.12,151.1,312.0]
[1741250735767,87.8,151.12,151.1,0.14216157]
[1741250736679,87.8,151.12,151.08,0.14216157]
[1741250736859,94.4172,151.12,151.08,0.14216157]
[1741250737281,94.4172,151.12,151.04,0.033]
[1741250737500,87.8,151.11,151.04,0.033]
[1741250737800,6.6181,151.1,151.04,0.033]
[1741250737970,87.8,151.09,151.04,0.033]
[1741250738480,18.64964886,151.06,151.04,0.033]
[1741250738787,87.8,151.05,151.04,312.033]
[1741250739180,6.2067,151.07,151.04,312.033]
[1741250739372,6.2067,151.07,151.05,0.14216157]
[1741250739571,6.6198,151.06,151.05,0.14216157]
[1741250739793,6.2067,151.07,151.05,0.14216157]
[1741250739973,12.8261,151.07,151.05,0.14216157]
[1741250740285,6.2067,151.07,151.05,0.14216157]
[1741250741176,12.8262,151.07,151.05,0.14216157]
[1741250742305,6.2067,151.07,151.05,0.14216157]
[1741250742765,12.8262,151.07,151.05,0.14216157]
[1741250742972,19.8262,151.07,151.05,0.14216157]
[1741250743975,87.8,151.06,151.04,312.033]
[1741250744679,87.8,151.06,151.05,0.033]
[1741250744877,18.64964886,151.06,151.05,0.033]
[1741250745406,18.64964886,151.06,151.0,0.033]
[1741250745407,106.87613357,151.05,151.0,0.033]
[1741250745567,18.64964886,151.03,151.0,0.033]
[1741250746078,6.6216,151.02,151.0,0.033]
[1741250746891,6.6216,151.02,150.94,0.14216157]
[1741250747090,6.6225,151.0,150.92,33.011398]
[1741250747482,87.8,150.99,150.89,6.6601]
[1741250747682,87.8,150.99,150.89,33.045598]
[1741250748092,6.1906,150.98,150.89,0.033]
[1741250748269,6.1906,150.98,150.94,312.0]
[1741250748473,87.8,150.97,150.94,312.0]
[1741250749174,113.07384886,150.96,150.94,312.0]
[1741250749576,80.8,151.02,150.94,26.385498]
[1741250749775,87.8,151.02,150.95,0.14216157]
[1741250749987,87.8,151.02,150.97,26.52765957]
[1741250750185,2.0284,151.05,150.97,26.52765957]
[1741250750582,2.0284,151.05,150.93,26.66982114]
[1741250750583,2.0284,151.05,150.99,0.14216157]
[1741250750797,87.8,151.06,151.01,0.14216157]
[1741250751286,87.8,151.06,151.0,0.14216157]
[1741250752197,80.8,151.06,151.0,26.52765957]
[1741250752575,80.8,151.06,151.05,312.14216157]
[1741250752887,18.64964886,151.08,151.05,312.0]
[1741250753088,18.64964886,151.06,151.05,312.0]
[1741250753285,18.64964886,151.06,150.95,6.6246]
[1741250753491,87.8,151.05,150.95,6.6246]
[1741250754183,87.8,151.05,150.95,33.010098]
[1741250754583,87.8,151.04,150.96,0.14216157]
[1741250754788,87.8,151.03,150.94,26.385498]
[1741250755094,18.64964886,151.0,150.9,26.385498]
[1741250755301,18.64964886,151.0,150.89,6.6602]
[1741250755474,87.8,150.99,150.89,6.6602]
[1741250755673,87.8,150.99,150.9,0.14216157]
[1741250755980,87.8,150.99,150.9,26.52765957]
[1741250756292,87.8,150.99,150.98,312.0]
[1741250756498,80.8,150.99,150.98,312.14216157]
[1741250757102,20.0,150.95,150.89,0.033]
[1741250757296,87.8,150.94,150.89,0.033]
[1741250757986,87.8,150.94,150.91,0.033]
[1741250759096,94.4252,150.94,150.91,0.033]
[1741250759290,25.26834886,150.92,150.91,0.033]
[1741250759597,6.6187,150.92,150.91,0.033]
[1741250759788,25.26834886,150.92,150.91,0.033]
[1741250759990,6.6187,150.92,150.91,312.033]
[1741250760572,80.8,150.93,150.91,0.033]
[1741250760777,87.4257,150.93,150.91,0.033]
[1741250761591,87.8,150.92,150.91,0.033]
[1741250761790,87.8,150.92,150.89,0.033]
[1741250761795,0.14216157,150.91,150.89,0.033]
[1741250761987,106.44964886,150.9,150.89,0.033]
[1741250762614,106.44964886,150.9,150.89,0.0001]
[1741250762615,18.79181043,150.9,150.89,0.0001]
[1741250762782,0.14216157,150.89,150.87,0.033]
[1741250763100,33.1279,150.93,150.76,0.033]
[1741250763101,0.14216157,150.84,150.76,0.033]
[1741250763288,80.8,150.83,150.76,0.033]
[1741250763477,19.07613357,150.81,150.76,0.033]
[1741250763682,18.79181043,150.79,150.76,0.033]
[1741250763882,87.8,150.78,150.76,0.033]
[1741250764890,6.6326,150.77,150.76,0.033]
[1741250765296,87.8,150.78,150.76,0.033]
[1741250765491,80.8,150.78,150.76,0.033]
[1741250766701,87.8,150.78,150.76,0.033]
[1741250766901,94.4304,150.82,150.76,0.033]
[1741250767086,94.4304,150.82,150.81,312.0]
[1741250767287,25.28004886,150.82,150.81,312.0]
[1741250768691,6.6304,150.82,150.76,0.033]
[1741250768890,6.144,150.77,150.76,0.033]
[1741250769082,18.64964886,150.76,150.67,0.033]
[1741250769983,6.144,150.77,150.69,0.14216157]
[1741250770311,6.144,150.77,150.75,0.033]
[1741250770522,18.64964886,150.76,150.75,0.033]
[1741250770731,18.64964886,150.76,150.67,0.033]
[1741250770938,6.6334,150.75,150.67,0.033]
[1741250771583,6.144,150.77,150.67,0.033]
[1741250771789,6.144,150.77,150.71,312.0]
[1741250772084,18.64964886,150.76,150.71,312.0]
[1741250772284,80.8,150.74,150.71,312.0]
[1741250772709,87.8,150.73,150.71,312.0]
[1741250772886,87.8,150.72,150.71,312.0]
[1741250773217,87.8,150.71,150.67,0.033]
[1741250773404,87.8,150.7,150.67,0.033]
[1741250774293,87.8,150.69,150.67,0.033]
[1741250775008,80.8,150.72,150.67,0.033]
[1741250775205,87.4349,150.72,150.67,0.033]
[1741250775392,18.64964886,150.71,150.67,0.033]
[1741250775594,87.8,150.7,150.67,0.033]
[1741250775803,87.8,150.69,150.67,0.033]
[1741250776102,87.8,150.69,150.67,312.033]
[1741250776290,87.8,150.68,150.67,312.033]
[1741250776606,87.8,150.68,150.67,0.033]
[1741250776916,18.64964886,150.67,150.6,0.033]
[1741250777088,18.64964886,150.65,150.6,0.033]
[1741250777293,111.031,150.66,150.6,0.033]
[1741250777510,94.4374,150.66,150.6,0.033]
[1741250777900,18.64964886,150.65,150.6,0.033]
[1741250778993,18.64964886,150.63,150.6,0.033]
[1741250779193,18.64964886,150.61,150.6,0.033]
[1741250779807,87.8,150.62,150.6,0.033]
[1741250780023,23.2341,150.64,150.6,0.033]
[1741250780024,80.8,150.61,150.6,0.033]
[1741250781927,7.0,150.63,150.6,0.033]
[1741250782102,87.4374,150.66,150.6,0.17516157]
[1741250782300,80.8,150.66,150.6,0.17516157]
[1741250782617,87.8,150.65,150.6,0.033]
[1741250783011,18.64964886,150.64,150.6,0.033]
[1741250783331,6.6387,150.63,150.6,312.033]
[1741250784327,106.44964886,150.62,150.6,312.033]
[1741250784527,87.8,150.61,150.58,0.033]
[1741250785026,23.2418,150.59,150.49,2.1151]
[1741250785193,0.14216157,150.57,150.49,0.033]
[1741250785398,18.64964886,150.55,150.49,0.033]
[1741250785616,87.8,150.54,150.49,312.033]
[1741250786038,87.8,150.53,150.49,312.033]
[1741250786209,87.8,150.52,150.49,312.033]
[1741250786411,87.8,150.51,150.49,312.033]
[1741250786700,18.64964886,150.53,150.49,312.033]
[1741250787213,18.64964886,150.53,150.42,0.033]
[1741250787214,20.0,150.46,150.42,0.033]
[1741250787528,24.96374886,150.49,150.42,0.033]
[1741250787529,87.8,150.45,150.42,0.033]
[1741250788443,87.8,150.44,150.42,0.033]
[1741250788801,18.64964886,150.43,150.42,0.033]
[1741250789033,18.933972,150.43,150.42,0.033]
[1741250789241,25.29724886,150.43,150.42,0.033]
[1741250789438,18.64964886,150.43,150.42,0.033]
[1741250790409,32.581572,150.43,150.42,0.033]
[1741250790604,25.64964886,150.43,150.42,0.033]
[1741250791635,7.0,150.43,150.42,0.033]
[1741250791802,80.8,150.44,150.42,0.033]
[1741250793507,7.0,150.47,150.42,0.17516157]
[1741250794134,7.0,150.47,150.42,0.033]
[1741250794433,25.64964886,150.47,150.42,0.033]
[1741250794603,7.0,150.47,150.46,312.0]
[1741250794798,87.8,150.52,150.47,0.14216157]
[1741250795135,80.8,150.51,150.47,0.14216157]
[1741250795303,0.03,150.49,150.47,0.14216157]
[1741250795507,0.03,150.49,150.43,49.92048784]
[1741250795710,7.03,150.49,150.43,49.92048784]
[1741250795904,0.03,150.49,150.46,43.27288784]
[1741250796128,0.03,150.49,150.48,43.55721098]
[1741250796333,0.03,150.49,150.48,43.27288784]
[1741250796549,7.0,150.56,150.5,0.14216157]
[1741250796756,80.8,150.57,150.5,26.72446044]
[1741250797047,80.8,150.57,150.53,0.14216157]
[1741250798040,80.8,150.63,150.54,26.58229887]
[1741250798238,87.8,150.62,150.53,0.14216157]
[1741250798545,18.64964886,150.61,150.5,43.18418721]
[1741250798746,18.64964886,150.59,150.51,0.14216157]
[1741250799139,18.64964886,150.59,150.5,0.14216157]
[1741250799448,18.64964886,150.57,150.46,6.6462]
[1741250799792,18.64964886,150.55,150.47,0.14216157]
[1741250800260,18.64964886,150.55,150.44,43.18418721]
[1741250800437,87.8,150.54,150.48,0.14216157]
[1741250800844,87.8,150.54,150.5,0.14216157]
[1741250801042,87.8,150.58,150.5,43.32634878]
[1741250801242,87.8,150.57,150.5,43.32634878]
[1741250801433,87.8,150.57,150.52,0.14216157]
[1741250801642,80.8,150.57,150.52,0.14216157]
[1741250801848,80.8,150.57,150.5,0.14216157]
[1741250802028,87.4416,150.57,150.5,0.14216157]
[1741250802232,18.64964886,150.56,150.5,0.14216157]
[1741250802432,87.8,150.55,150.46,49.83018721]
[1741250802654,87.8,150.54,150.5,43.32634878]
[1741250802834,87.8,150.6,150.52,0.14216157]
[1741250803029,2.1554,150.61,150.52,0.14216157]
[1741250803030,87.8,150.59,150.52,0.14216157]
[1741250803459,80.8,150.59,150.54,0.14216157]
[1741250803644,0.03,150.65,150.58,43.61067192]
[1741250803828,0.03,150.65,150.58,43.32634878]
[1741250804033,0.03,150.65,150.58,0.14216157]
[1741250804235,0.03,150.65,150.64,312.14216157]
[1741250804640,0.03,150.65,150.64,0.14216157]
[1741250805236,18.67964886,150.65,150.57,43.18418721]
[1741250805436,87.8,150.64,150.56,0.14216157]
[1741250806358,87.8,150.63,150.56,43.61067192]
[1741250806535,87.8,150.63,150.59,0.14216157]
[1741250806937,87.8,150.63,150.59,43.32634878]
[1741250807249,87.8,150.63,150.59,0.14216157]
[1741250807754,87.8,150.63,150.62,312.14216157]
[1741250808055,80.8,150.63,150.62,312.14216157]
[1741250808452,0.03,150.65,150.63,0.14216157]
[1741250808942,0.03,150.65,150.62,0.14216157]
[1741250809556,0.03,150.65,150.62,43.32634878]
[1741250810050,0.03,150.65,150.62,0.14216157]
[1741250810240,0.03,150.65,150.61,0.14216157]
[1741250810772,0.03,150.65,150.6,0.14216157]
[1741250811577,0.03,150.65,150.64,312.14216157]
[1741250814650,0.03,150.65,150.64,318.78046157]
[1741250814864,0.03,150.65,150.64,362.24897192]
[1741250815162,0.03,150.67,150.65,0.42648471]
[1741250815369,0.03,150.67,150.65,0.14216157]
[1741250815576,0.03,150.67,150.63,0.14216157]
[1741250816075,87.8,150.66,150.58,6.3935]
[1741250816277,0.03,150.67,150.56,43.18418721]
[1741250816278,87.8,150.65,150.56,43.18418721]
[1741250816465,87.8,150.64,150.56,43.18418721]
[1741250816671,87.8,150.64,150.57,43.61067192]
[1741250817171,80.83,150.67,150.62,0.14216157]
[1741250817471,0.03,150.67,150.64,0.14216157]
[1741250818053,0.03,150.67,150.63,0.14216157]
[1741250818257,0.03,150.67,150.66,312.14216157]
[1741250820166,0.03,150.67,150.66,318.77956157]
[1741250820368,0.03,150.67,150.66,312.14216157]
[1741250820755,80.8,150.72,150.67,0.42648471]
[1741250820959,80.8,150.72,150.69,0.14216157]
[1741250821665,80.8,150.72,150.68,0.14216157]
[1741250821854,87.4351,150.72,150.68,0.14216157]
[1741250822061,87.4351,150.72,150.65,43.18418721]
[1741250822062,87.4351,150.72,150.65,0.42648471]
[1741250823376,80.8,150.75,150.68,0.28432314]
[1741250823674,80.8,150.75,150.69,43.46851035]
[1741250823886,80.8,150.75,150.74,312.14216157]
[1741250824061,80.8,150.77,150.75,0.14216157]
[1741250824454,0.03,150.79,150.73,0.14216157]
[1741250824671,0.03,150.79,150.74,0.28432314]
[1741250824957,0.03,150.79,150.76,0.14216157]
[1741250825591,6.6618,150.79,150.73,0.42648471]
[1741250826085,6.6618,150.79,150.73,43.61067192]
[1741250826388,104.0411,150.79,150.72,6.62]
[1741250826558,104.0411,150.79,150.68,43.18418721]
[1741250826759,104.0411,150.79,150.69,43.61067192]
[1741250826760,87.8,150.78,150.69,43.61067192]
[1741250826959,87.8,150.78,150.71,43.61067192]
[1741250827305,87.8,150.78,150.73,43.61067192]
[1741250827590,0.03,150.79,150.78,0.14216157]
[1741250827959,0.03,150.79,150.76,50.24357192]
[1741250828564,0.03,150.79,150.78,0.42648471]
[1741250828769,0.03,150.79,150.78,43.61067192]
[1741250828968,0.03,150.79,150.78,43.75283349]
[1741250829778,0.0005494,150.79,150.78,43.75283349]
[1741250829981,0.0005494,150.79,150.78,50.38493349]
[1741250830184,0.0005494,150.79,150.78,151.72669047]
[1741250830388,0.03,150.83,150.79,0.14216157]
[1741250830695,0.03,150.83,150.81,0.14216157]
[1741250830868,0.03,150.83,150.82,312.14216157]
[1741250831069,0.03,150.83,150.82,455.70248235]
[1741250831756,19.957616,150.84,150.83,0.56864628]
[1741250831961,19.957616,150.84,150.83,131.68273349]
[1741250832266,19.957616,150.84,150.83,151.72384062]
[1741250832465,19.957616,150.84,150.83,150.33238235]
[1741250832862,19.957616,150.84,150.83,125.05283349]
[1741250833185,19.957616,150.84,150.83,81.72648471]
[1741250833362,19.957616,150.84,150.83,81.3]
[1741250833583,19.957616,150.84,150.83,81.72648471]
[1741250833779,26.587416,150.84,150.79,43.18418721]
[1741250833979,26.587416,150.84,150.78,81.3]
[1741250834283,6.6298,150.84,150.76,6.6]
[1741250834493,23.2036,150.84,150.76,6.6]
[1741250834695,6.629,150.86,150.78,43.18418721]
[1741250834894,6.629,150.86,150.83,0.14216157]
[1741250835202,87.4283,150.87,150.83,0.14216157]
[1741250835501,0.03,150.9,150.87,0.56864628]
[1741250835705,0.03,150.9,150.89,0.14216157]
[1741250835900,0.03,150.9,150.89,43.32634878]
[1741250836202,0.03,150.9,150.89,0.14216157]
[1741250836403,0.03,150.9,150.89,0.42648471]
[1741250836605,0.03,150.9,150.89,43.75283349]
[1741250836786,0.03,150.9,150.89,125.05283349]
[1741250836985,0.03,150.9,150.89,131.68013349]
[1741250837706,0.03,150.9,150.89,125.05283349]
[1741250837907,0.03,150.9,150.89,81.72648471]
[1741250838412,0.03,150.9,150.89,443.68013349]
[1741250838701,0.03,150.9,150.89,462.32978235]
[1741250838910,0.03,150.9,150.89,393.72648471]
[1741250839984,0.03,150.9,150.89,312.0]
[1741250840596,0.03,150.9,150.89,312.14216157]
[1741250841005,0.03,150.9,150.89,312.0]
[1741250841205,20.0,150.88,150.79,81.3]
[1741250841413,80.8,150.87,150.77,133.15448721]
[1741250841606,80.8,150.87,150.78,0.56864628]
[1741250841909,80.8,150.87,150.77,133.15448721]
[1741250842120,6.6286,150.86,150.78,43.18418721]
[1741250842289,6.6286,150.86,150.85,312.0]
[1741250842485,80.8,150.87,150.85,312.0]
[1741250842706,80.8,150.87,150.86,0.14216157]
[1741250843286,80.8,150.87,150.83,0.14216157]
[1741250843901,6.6277,150.88,150.83,0.14216157]
[1741250844689,87.4274,150.89,150.83,0.14216157]
[1741250845391,6.5633,150.9,150.85,0.14216157]
[1741250845586,0.03,150.9,150.86,43.46851035]
[1741250845823,0.03,150.9,150.89,312.42648471]
[1741250845990,0.03,150.9,150.89,355.75283349]
[1741250846495,0.03,150.9,150.89,362.38013349]
[1741250846902,0.03,150.9,150.89,443.68013349]
[1741250848291,0.03,150.9,150.89,312.0]
[1741250848707,0.03,150.9,150.89,355.32634878]
[1741250848915,0.03,150.9,150.89,437.05283349]
[1741250849518,0.03,150.9,150.89,443.68013349]
[1741250849718,0.03,150.9,150.89,393.44216157]
[1741250850020,0.03,150.9,150.89,393.72648471]
[1741250850212,0.03,150.9,150.89,443.68013349]
[1741250850421,0.03,150.9,150.89,462.32978235]
[1741250851114,0.03,150.9,150.89,425.74559514]
[1741250851320,0.03,150.9,150.89,468.92978235]
[1741250851525,0.03,150.9,150.89,443.65283349]
[1741250851690,0.03,150.9,150.89,399.9]
[1741250852208,0.03,150.9,150.89,393.3]
[1741250852621,0.03,150.9,150.89,393.72648471]
[1741250852790,0.03,150.9,150.89,400.49594628]
[1741250853098,0.03,150.9,150.89,393.44216157]
[1741250853288,0.03,150.9,150.89,312.0]
[1741250853799,0.03,150.9,150.89,312.14216157]
[1741250854000,0.03,150.9,150.89,312.0]
[1741250854534,0.03,150.9,150.89,312.42648471]
[1741250854733,0.03,150.9,150.89,450.28013349]
[1741250855715,0.03,150.9,150.89,393.44216157]
[1741250855914,0.03,150.9,150.89,312.0]
[1741250856289,0.03,150.9,150.89,312.14216157]
[1741250856817,0.03,150.9,150.89,312.0]
[1741250856998,6.3676,150.9,150.89,312.0]
[1741250857195,18.64964886,150.89,150.83,0.033]
[1741250857404,18.64964886,150.87,150.83,0.033]
[1741250857712,87.8,150.86,150.83,0.033]
[1741250858014,20.0,150.81,150.72,0.21324235]
[1741250858190,20.0,150.81,150.68,81.3]
[1741250858191,87.8,150.8,150.68,124.48418721]
[1741250858400,6.6321,150.78,150.68,124.48418721]
[1741250858613,6.6321,150.78,150.69,0.42648471]
[1741250859123,87.8,150.79,150.71,43.18418721]
[1741250859416,87.8,150.79,150.73,43.18418721]
[1741250859631,82.8922,150.83,150.78,43.18418721]
[1741250859794,82.8922,150.83,150.73,81.3]
[1741250859795,86.9955,150.85,150.81,0.14216157]
[1741250860196,7.0,150.87,150.84,312.14216157]
[1741250860616,80.8,150.86,150.84,0.14216157]
[1741250861823,80.8,150.88,150.83,0.14216157]
[1741250862696,80.8,150.88,150.82,0.14216157]
[1741250862891,6.3985,150.9,150.86,0.14216157]
[1741250863091,0.03,150.9,150.86,43.32634878]
[1741250863295,0.03,150.9,150.88,0.14216157]
[1741250863509,0.03,150.9,150.88,43.32634878]
[1741250863720,0.03,150.9,150.89,355.32634878]
[1741250864610,0.03,150.9,150.89,361.95364878]
[1741250865116,0.03,150.9,150.89,355.32634878]
[1741250865306,0.03,150.9,150.89,312.14216157]
[1741250865508,0.03,150.9,150.89,361.95364878]
[1741250866711,0.03,150.9,150.89,362.23797192]
[1741250868336,0.03,150.9,150.89,362.38013349]
[1741250868826,0.03,150.9,150.89,312.14216157]
[1741250869837,0.03,150.9,150.89,355.32634878]
[1741250870015,0.03,150.9,150.89,362.38013349]
[1741250870212,0.03,150.9,150.89,312.14216157]
[1741250870512,0.03,150.9,150.89,362.23797192]
[1741250870715,0.03,150.9,150.89,362.38013349]
[1741250870908,0.03,150.9,150.89,443.68013349]
[1741250871531,99.4849,151.03,150.89,443.68013349]
[1741250871532,62.07835103,151.18,151.16,2.0]
[1741250871706,9.437e-05,151.21,151.2,52.56864628]
[1741250872028,5.997416,151.27,151.26,20.14216157]
[1741250872217,5.997416,151.27,151.26,107.79829514]
[1741250872415,33.23135272,151.44,151.3,19.21829514]
[1741250872616,87.8,151.43,151.3,0.14216157]
[1741250872933,6.6043,151.42,151.3,0.42648471]
[1741250873115,94.4039,151.43,151.3,43.61067192]
[1741250873434,87.8,151.43,151.33,0.14216157]
[1741250873732,87.8,151.43,151.35,0.14216157]
[1741250874326,87.8,151.48,151.35,0.28432314]
[1741250874530,87.8,151.48,151.36,56.87442423]
[1741250874531,80.8,151.48,151.36,56.87442423]
[1741250874729,80.8,151.48,151.36,368.87442423]
[1741250874934,80.8,151.48,151.36,368.73226266]